[Event "Titled Tuesday Blitz May 31 Early 2022"]
[White "Sokolovsky, Yahli"]
[Black "Large, Peter G"]
[WhiteFideId "2820242"]
[BlackFideId "400866"]
[WhiteElo "1770"]
[BlackElo "2064"]
[Result "0-1"]
[Round "11"]
[TimeControl "180+1"]
[Date "2022.06.01"]
[WhiteClock "0:00:07"]
[BlackClock "0:00:08"]

1. b3 {[%clk 0:02:14]}  Nf6 {[%clk 0:02:54]} 2. Bb2 {[%clk 0:02:11]}  e6 {[%clk 0:02:54]} 3. e3 {[%clk 0:02:10]}  b6 {[%clk 0:02:53]} 4. Nf3 {[%clk 0:02:10]}  Bb7 {[%clk 0:02:54]} 5. d4 {[%clk 0:02:11]}  d5 {[%clk 0:02:46]} 6. Bd3 {[%clk 0:02:10]}  Bd6 {[%clk 0:02:43]} 7. O-O {[%clk 0:02:07]}  O-O {[%clk 0:02:43]} 8. Nbd2 {[%clk 0:02:07]}  Nbd7 {[%clk 0:02:43]} 9. Ne5 {[%clk 0:02:07]}  Ne4 {[%clk 0:02:40]} 10. f4 {[%clk 0:02:01]}  f6 {[%clk 0:02:37]} 11. Nxd7 {[%clk 0:01:57]}  Qxd7 {[%clk 0:02:37]} 12. c4 {[%clk 0:01:50]}  f5 {[%clk 0:02:03]} 13. Nf3 {[%clk 0:01:40]}  c5 {[%clk 0:01:58]} 14. Qe2 {[%clk 0:01:23]}  Rad8 {[%clk 0:01:52]} 15. Rad1 {[%clk 0:01:23]}  Qe7 {[%clk 0:01:32]} 16. Ne5 {[%clk 0:00:52]}  cxd4 {[%clk 0:01:05]} 17. exd4 {[%clk 0:00:52]}  Rf6 {[%clk 0:00:42]} 18. Bxe4 {[%clk 0:00:36]}  fxe4 {[%clk 0:00:42]} 19. g3 {[%clk 0:00:30]}  Rdf8 {[%clk 0:00:38]} 20. Ng4 {[%clk 0:00:30]}  Rf5 {[%clk 0:00:36]} 21. Ne3 {[%clk 0:00:30]}  R5f7 {[%clk 0:00:36]} 22. Qh5 {[%clk 0:00:24]}  g6 {[%clk 0:00:34]} 23. Qh6 {[%clk 0:00:24]}  Qf6 {[%clk 0:00:25]} 24. Rd2 {[%clk 0:00:22]}  Qg7 {[%clk 0:00:25]} 25. Qh3 {[%clk 0:00:22]}  Rf6 {[%clk 0:00:18]} 26. c5 {[%clk 0:00:22]}  Bc7 {[%clk 0:00:16]} 27. Ng4 {[%clk 0:00:17]}  Rf5 {[%clk 0:00:16]} 28. Nh6+ {[%clk 0:00:17]}  Kh8 {[%clk 0:00:17]} 29. Nxf5 {[%clk 0:00:18]}  exf5 {[%clk 0:00:17]} 30. cxb6 {[%clk 0:00:15]}  Bxb6 {[%clk 0:00:17]} 31. Rc1 {[%clk 0:00:15]}  Ba6 {[%clk 0:00:17]} 32. Re1 {[%clk 0:00:10]}  Bd3 {[%clk 0:00:17]} 33. Qg2 {[%clk 0:00:10]}  Bxd4+ {[%clk 0:00:17]} 34. Bxd4 {[%clk 0:00:10]}  Qxd4+ {[%clk 0:00:17]} 35. Qf2 {[%clk 0:00:11]}  Qf6 {[%clk 0:00:16]} 36. Qxa7 {[%clk 0:00:10]}  d4 {[%clk 0:00:16]} 37. Rc1 {[%clk 0:00:07]}  Rf7 {[%clk 0:00:12]} 38. Qc5 {[%clk 0:00:06]}  Kg7 {[%clk 0:00:12]} 39. Qc6 {[%clk 0:00:06]}  Qxc6 {[%clk 0:00:10]} 40. Rxc6 {[%clk 0:00:07]}  Ra7 {[%clk 0:00:09]} 41. a4 {[%clk 0:00:07]}  Rb7 {[%clk 0:00:09]} 42. Rb2 {[%clk 0:00:08]}  e3 {[%clk 0:00:09]} 43. a5 {[%clk 0:00:08]}  Be4 {[%clk 0:00:09]} 44. Rd6 {[%clk 0:00:07]}  Rc7 {[%clk 0:00:08]} 45. Rxd4 {[%clk 0:00:07]}  Rc1+ {[%clk 0:00:08]} 0-1


[Site "https://www.chess.com"]

[Event "Titled Tuesday Blitz May 31 Early 2022"]
[White "Swiercz, Dariusz"]
[Black "Makarian, Rudik"]
[WhiteFideId "1126881"]
[BlackFideId "44105681"]
[WhiteElo "2627"]
[BlackElo "2419"]
[Result "1-0"]
[Round "11"]
[TimeControl "180+1"]
[Date "2022.05.31"]
[WhiteClock "0:00:07"]
[BlackClock "0:00:02"]

1. e4 {[%clk 0:03:00]}  c5 {[%clk 0:02:56]} 2. Nf3 {[%clk 0:03:00]}  e6 {[%clk 0:02:56]} 3. d3 {[%clk 0:03:00]}  Nc6 {[%clk 0:02:56]} 4. g3 {[%clk 0:03:00]}  d5 {[%clk 0:02:57]} 5. Nbd2 {[%clk 0:03:00]}  Nf6 {[%clk 0:02:57]} 6. Bg2 {[%clk 0:03:01]}  Be7 {[%clk 0:02:58]} 7. O-O {[%clk 0:03:01]}  O-O {[%clk 0:02:58]} 8. Re1 {[%clk 0:03:01]}  b5 {[%clk 0:02:59]} 9. e5 {[%clk 0:03:00]}  Nd7 {[%clk 0:02:58]} 10. Nf1 {[%clk 0:03:01]}  Qc7 {[%clk 0:02:58]} 11. Bf4 {[%clk 0:03:01]}  Bb7 {[%clk 0:02:58]} 12. Ne3 {[%clk 0:03:01]}  Rfc8 {[%clk 0:02:58]} 13. Nxd5 {[%clk 0:03:01]}  exd5 {[%clk 0:02:55]} 14. e6 {[%clk 0:03:02]}  Qd8 {[%clk 0:02:55]} 15. exd7 {[%clk 0:03:01]}  Qxd7 {[%clk 0:02:56]} 16. Ne5 {[%clk 0:02:59]}  Nxe5 {[%clk 0:02:54]} 17. Bxe5 {[%clk 0:03:00]}  Re8 {[%clk 0:02:44]} 18. Qh5 {[%clk 0:02:56]}  d4 {[%clk 0:02:38]} 19. Bxb7 {[%clk 0:02:45]}  Qxb7 {[%clk 0:02:39]} 20. Re4 {[%clk 0:02:42]}  Bf8 {[%clk 0:02:25]} 21. Rae1 {[%clk 0:02:37]}  f6 {[%clk 0:02:08]} 22. Bf4 {[%clk 0:02:18]}  Rxe4 {[%clk 0:02:08]} 23. Rxe4 {[%clk 0:02:16]}  Qf7 {[%clk 0:02:06]} 24. Qe2 {[%clk 0:01:52]}  Qxa2 {[%clk 0:02:00]} 25. b3 {[%clk 0:01:52]}  Qa6 {[%clk 0:01:54]} 26. Re6 {[%clk 0:00:53]}  Qb7 {[%clk 0:01:52]} 27. Bd6 {[%clk 0:00:53]}  Bxd6 {[%clk 0:01:22]} 28. Rxd6 {[%clk 0:00:54]}  a5 {[%clk 0:01:21]} 29. Re6 {[%clk 0:00:36]}  Qc8 {[%clk 0:00:59]} 30. Re7 {[%clk 0:00:24]}  a4 {[%clk 0:00:53]} 31. bxa4 {[%clk 0:00:23]}  bxa4 {[%clk 0:00:54]} 32. Qh5 {[%clk 0:00:19]}  Qf8 {[%clk 0:00:49]} 33. Qd5+ {[%clk 0:00:13]}  Kh8 {[%clk 0:00:48]} 34. Rf7 {[%clk 0:00:14]}  Qg8 {[%clk 0:00:42]} 35. Qb7 {[%clk 0:00:14]}  Rb8 {[%clk 0:00:22]} 36. Qa7 {[%clk 0:00:14]}  Ra8 {[%clk 0:00:19]} 37. Qb7 {[%clk 0:00:15]}  Qb8 {[%clk 0:00:09]} 38. Qxb8+ {[%clk 0:00:08]}  Rxb8 {[%clk 0:00:09]} 39. Ra7 {[%clk 0:00:09]}  h5 {[%clk 0:00:06]} 40. Rxa4 {[%clk 0:00:09]}  Rb5 {[%clk 0:00:06]} 41. h4 {[%clk 0:00:09]}  Kh7 {[%clk 0:00:06]} 42. Kg2 {[%clk 0:00:09]}  Kg6 {[%clk 0:00:06]} 43. Kf3 {[%clk 0:00:10]}  Kf5 {[%clk 0:00:06]} 44. Ra7 {[%clk 0:00:09]}  g5 {[%clk 0:00:06]} 45. Rc7 {[%clk 0:00:10]}  g4+ {[%clk 0:00:04]} 46. Ke2 {[%clk 0:00:10]}  Kg6 {[%clk 0:00:04]} 47. Rc6 {[%clk 0:00:10]}  Kf5 {[%clk 0:00:03]} 48. Kd2 {[%clk 0:00:10]}  Ra5 {[%clk 0:00:03]} 49. Rc8 {[%clk 0:00:10]}  Kg6 {[%clk 0:00:03]} 50. Rg8+ {[%clk 0:00:10]}  Kf5 {[%clk 0:00:03]} 51. Rh8 {[%clk 0:00:11]}  Kg6 {[%clk 0:00:04]} 52. Rc8 {[%clk 0:00:12]}  Kf5 {[%clk 0:00:04]} 53. Kc1 {[%clk 0:00:12]}  Ra1+ {[%clk 0:00:04]} 54. Kd2 {[%clk 0:00:12]}  Ra5 {[%clk 0:00:03]} 55. Rc7 {[%clk 0:00:13]}  Kg6 {[%clk 0:00:04]} 56. Kd1 {[%clk 0:00:13]}  Ra1+ {[%clk 0:00:03]} 57. Ke2 {[%clk 0:00:14]}  Ra5 {[%clk 0:00:04]} 58. f3 {[%clk 0:00:13]}  Kf5 {[%clk 0:00:04]} 59. Rh7 {[%clk 0:00:12]}  Kg6 {[%clk 0:00:04]} 60. Rh8 {[%clk 0:00:13]}  Ra2 {[%clk 0:00:02]} 61. fxg4 {[%clk 0:00:10]}  hxg4 {[%clk 0:00:02]} 62. Kd2 {[%clk 0:00:10]}  Ra1 {[%clk 0:00:02]} 63. Rg8+ {[%clk 0:00:09]}  Kf5 {[%clk 0:00:03]} 64. Rc8 {[%clk 0:00:10]}  Rg1 {[%clk 0:00:03]} 65. Rxc5+ {[%clk 0:00:10]}  Kg6 {[%clk 0:00:03]} 66. h5+ {[%clk 0:00:08]}  Kg7 {[%clk 0:00:03]} 67. Rc4 {[%clk 0:00:06]}  Rg2+ {[%clk 0:00:02]} 68. Ke1 {[%clk 0:00:06]}  Rxg3 {[%clk 0:00:03]} 69. Rxd4 {[%clk 0:00:07]}  Rf3 {[%clk 0:00:03]} 70. Rxg4+ {[%clk 0:00:07]}  Kh6 {[%clk 0:00:03]} 71. Rh4 {[%clk 0:00:07]}  Kg5 {[%clk 0:00:03]} 72. Rh2 {[%clk 0:00:06]}  Kh6 {[%clk 0:00:03]} 73. Ke2 {[%clk 0:00:06]}  Rf5 {[%clk 0:00:04]} 74. c4 {[%clk 0:00:06]}  Ra5 {[%clk 0:00:03]} 75. Ke3 {[%clk 0:00:07]}  f5 {[%clk 0:00:03]} 76. Kf4 {[%clk 0:00:07]}  Ra3 {[%clk 0:00:02]} 77. Rh3 {[%clk 0:00:07]}  Ra5 {[%clk 0:00:02]} 78. d4 {[%clk 0:00:06]}  Ra4 {[%clk 0:00:02]} 79. Rc3 {[%clk 0:00:07]} 1-0


[Site "https://www.chess.com"]

[Event "Titled Tuesday Blitz May 31 Early 2022"]
[White "Tanenbaum, Zachary"]
[Black "Mikhalsky, Vladimir"]
[WhiteFideId "2060850"]
[BlackFideId "14144352"]
[WhiteElo "2168"]
[BlackElo "2301"]
[Result "1-0"]
[Round "11"]
[TimeControl "180+1"]
[Date "2022.06.01"]
[WhiteClock "0:00:10"]
[BlackClock "0:00:05"]

1. e4 {[%clk 0:03:00]}  c5 {[%clk 0:03:00]} 2. Nf3 {[%clk 0:03:00]}  Nc6 {[%clk 0:02:59]} 3. Nc3 {[%clk 0:03:00]}  e5 {[%clk 0:02:57]} 4. Bc4 {[%clk 0:03:00]}  Be7 {[%clk 0:02:56]} 5. d3 {[%clk 0:03:01]}  d6 {[%clk 0:02:55]} 6. Nd2 {[%clk 0:03:01]}  Bg5 {[%clk 0:02:53]} 7. Nf1 {[%clk 0:02:59]}  Nh6 {[%clk 0:02:48]} 8. Nd5 {[%clk 0:02:24]}  Bxc1 {[%clk 0:02:44]} 9. Qxc1 {[%clk 0:02:22]}  O-O {[%clk 0:02:43]} 10. Nfe3 {[%clk 0:02:21]}  Kh8 {[%clk 0:02:40]} 11. O-O {[%clk 0:02:19]}  f5 {[%clk 0:02:34]} 12. exf5 {[%clk 0:02:13]}  Nxf5 {[%clk 0:02:33]} 13. f4 {[%clk 0:02:14]}  exf4 {[%clk 0:02:26]} 14. Rxf4 {[%clk 0:02:12]}  Ne5 {[%clk 0:02:25]} 15. Qf1 {[%clk 0:02:05]}  Qg5 {[%clk 0:02:04]} 16. Nc7 {[%clk 0:01:41]}  Nxc4 {[%clk 0:01:39]} 17. Nxc4 {[%clk 0:01:41]}  Rb8 {[%clk 0:01:33]} 18. Nxd6 {[%clk 0:01:40]}  Qe7 {[%clk 0:01:28]} 19. Nxc8 {[%clk 0:00:59]}  Qxc7 {[%clk 0:01:12]} 20. Rxf5 {[%clk 0:00:56]}  Rxf5 {[%clk 0:01:11]} 21. Qxf5 {[%clk 0:00:57]}  Rxc8 {[%clk 0:01:08]} 22. Re1 {[%clk 0:00:55]}  c4 {[%clk 0:00:59]} 23. d4 {[%clk 0:00:51]}  c3 {[%clk 0:00:55]} 24. b3 {[%clk 0:00:40]}  Rd8 {[%clk 0:00:54]} 25. Qe5 {[%clk 0:00:29]}  Qxe5 {[%clk 0:00:49]} 26. Rxe5 {[%clk 0:00:29]}  Kg8 {[%clk 0:00:49]} 27. d5 {[%clk 0:00:27]}  Kf7 {[%clk 0:00:48]} 28. Kf2 {[%clk 0:00:26]}  Kf6 {[%clk 0:00:48]} 29. Re6+ {[%clk 0:00:26]}  Kf7 {[%clk 0:00:46]} 30. Re3 {[%clk 0:00:23]}  Rxd5 {[%clk 0:00:45]} 31. Rxc3 {[%clk 0:00:23]}  Rd7 {[%clk 0:00:43]} 32. Ke3 {[%clk 0:00:22]}  Ke6 {[%clk 0:00:42]} 33. Rc4 {[%clk 0:00:21]}  Ke5 {[%clk 0:00:37]} 34. Re4+ {[%clk 0:00:21]}  Kf5 {[%clk 0:00:38]} 35. c4 {[%clk 0:00:19]}  g5 {[%clk 0:00:34]} 36. g4+ {[%clk 0:00:17]}  Kf6 {[%clk 0:00:33]} 37. b4 {[%clk 0:00:18]}  Rd1 {[%clk 0:00:31]} 38. Kf3 {[%clk 0:00:11]}  Ra1 {[%clk 0:00:26]} 39. Re2 {[%clk 0:00:10]}  Rb1 {[%clk 0:00:25]} 40. a3 {[%clk 0:00:10]}  Rc1 {[%clk 0:00:23]} 41. c5 {[%clk 0:00:09]}  a5 {[%clk 0:00:22]} 42. Rb2 {[%clk 0:00:07]}  a4 {[%clk 0:00:18]} 43. Re2 {[%clk 0:00:07]}  Rf1+ {[%clk 0:00:17]} 44. Ke4 {[%clk 0:00:06]}  Ke6 {[%clk 0:00:13]} 45. Kd4+ {[%clk 0:00:06]}  Kd7 {[%clk 0:00:14]} 46. Kc4 {[%clk 0:00:04]}  Rf4+ {[%clk 0:00:12]} 47. Kb5 {[%clk 0:00:05]}  Rxg4 {[%clk 0:00:13]} 48. Kb6 {[%clk 0:00:05]}  Rg1 {[%clk 0:00:10]} 49. Kxb7 {[%clk 0:00:05]}  Rc1 {[%clk 0:00:10]} 50. Rd2+ {[%clk 0:00:05]}  Ke6 {[%clk 0:00:10]} 51. c6 {[%clk 0:00:06]}  h5 {[%clk 0:00:06]} 52. c7 {[%clk 0:00:06]}  g4 {[%clk 0:00:06]} 53. c8=Q+ {[%clk 0:00:07]}  Rxc8 {[%clk 0:00:06]} 54. Kxc8 {[%clk 0:00:08]}  Ke5 {[%clk 0:00:05]} 55. b5 {[%clk 0:00:09]}  Kf4 {[%clk 0:00:05]} 56. b6 {[%clk 0:00:10]} 1-0


[Site "https://www.chess.com"]

[Event "Titled Tuesday Blitz May 31 Early 2022"]
[White "Turzo, Attila"]
[Black "Shailesh, Dravid"]
[WhiteFideId "704954"]
[BlackFideId "25017969"]
[WhiteElo "2557"]
[BlackElo "2205"]
[Result "1/2-1/2"]
[Round "11"]
[TimeControl "180+1"]
[Date "2022.05.31"]
[WhiteClock "0:00:02"]
[BlackClock "0:00:09"]

1. d4 {[%clk 0:03:00]}  Nf6 {[%clk 0:02:58]} 2. Nf3 {[%clk 0:03:01]}  c5 {[%clk 0:02:57]} 3. d5 {[%clk 0:03:01]}  b5 {[%clk 0:02:57]} 4. e4 {[%clk 0:03:00]}  Nxe4 {[%clk 0:02:55]} 5. Bd3 {[%clk 0:02:57]}  Nd6 {[%clk 0:02:53]} 6. O-O {[%clk 0:02:57]}  c4 {[%clk 0:02:53]} 7. Be2 {[%clk 0:02:55]}  g6 {[%clk 0:02:53]} 8. a4 {[%clk 0:02:53]}  Bg7 {[%clk 0:02:41]} 9. axb5 {[%clk 0:02:52]}  O-O {[%clk 0:02:41]} 10. Nc3 {[%clk 0:02:46]}  a6 {[%clk 0:02:37]} 11. bxa6 {[%clk 0:02:45]}  Nxa6 {[%clk 0:02:33]} 12. Be3 {[%clk 0:02:43]}  Bb7 {[%clk 0:02:32]} 13. Bd4 {[%clk 0:02:41]}  f6 {[%clk 0:02:28]} 14. Nd2 {[%clk 0:02:26]}  Qc7 {[%clk 0:02:26]} 15. Ra4 {[%clk 0:02:25]}  Nc5 {[%clk 0:02:02]} 16. Rxa8 {[%clk 0:02:10]}  Bxa8 {[%clk 0:02:02]} 17. Nxc4 {[%clk 0:02:11]}  Nf5 {[%clk 0:02:02]} 18. Nb5 {[%clk 0:01:48]}  Qb8 {[%clk 0:01:33]} 19. Bxc5 {[%clk 0:01:39]}  Qxb5 {[%clk 0:01:32]} 20. b4 {[%clk 0:01:38]}  Qb8 {[%clk 0:01:28]} 21. Nb6 {[%clk 0:01:35]}  d6 {[%clk 0:01:28]} 22. Nd7 {[%clk 0:01:33]}  Qc7 {[%clk 0:01:22]} 23. Nxf8 {[%clk 0:01:31]}  Bxf8 {[%clk 0:01:23]} 24. Bd4 {[%clk 0:01:20]}  Bxd5 {[%clk 0:01:20]} 25. Bxf6 {[%clk 0:01:12]}  Qb7 {[%clk 0:01:19]} 26. Bg5 {[%clk 0:00:51]}  Bxg2 {[%clk 0:01:14]} 27. Re1 {[%clk 0:00:51]}  h6 {[%clk 0:01:05]} 28. Bf4 {[%clk 0:00:39]}  Nh4 {[%clk 0:01:02]} 29. Bg3 {[%clk 0:00:33]}  Nf3+ {[%clk 0:00:44]} 30. Bxf3 {[%clk 0:00:25]}  Bxf3 {[%clk 0:00:44]} 31. Qd3 {[%clk 0:00:20]}  Kh7 {[%clk 0:00:43]} 32. Re3 {[%clk 0:00:18]}  Bg4 {[%clk 0:00:43]} 33. f3 {[%clk 0:00:18]}  Bf5 {[%clk 0:00:42]} 34. Qc4 {[%clk 0:00:18]}  e6 {[%clk 0:00:38]} 35. Bf2 {[%clk 0:00:17]}  d5 {[%clk 0:00:38]} 36. Qd4 {[%clk 0:00:15]}  Qxb4 {[%clk 0:00:33]} 37. Qxb4 {[%clk 0:00:15]}  Bxb4 {[%clk 0:00:34]} 38. Rb3 {[%clk 0:00:15]}  Bd6 {[%clk 0:00:23]} 39. Rb7+ {[%clk 0:00:14]}  Kg8 {[%clk 0:00:23]} 40. c3 {[%clk 0:00:14]}  Bf4 {[%clk 0:00:19]} 41. h4 {[%clk 0:00:11]}  g5 {[%clk 0:00:17]} 42. hxg5 {[%clk 0:00:11]}  hxg5 {[%clk 0:00:17]} 43. Kg2 {[%clk 0:00:10]}  Kf8 {[%clk 0:00:17]} 44. Bg3 {[%clk 0:00:10]}  Bd2 {[%clk 0:00:16]} 45. Be5 {[%clk 0:00:10]}  Ke8 {[%clk 0:00:16]} 46. Rg7 {[%clk 0:00:09]}  Kd8 {[%clk 0:00:14]} 47. Kf2 {[%clk 0:00:06]}  Kc8 {[%clk 0:00:13]} 48. Ke2 {[%clk 0:00:06]}  Bc1 {[%clk 0:00:11]} 49. Bf6 {[%clk 0:00:06]}  Bf4 {[%clk 0:00:10]} 50. Bxg5 {[%clk 0:00:04]}  Be5 {[%clk 0:00:09]} 51. Rg8+ {[%clk 0:00:05]}  Kd7 {[%clk 0:00:10]} 52. Bd2 {[%clk 0:00:05]}  Kc6 {[%clk 0:00:09]} 53. Rc8+ {[%clk 0:00:04]}  Kb5 {[%clk 0:00:09]} 54. Rg8 {[%clk 0:00:05]}  Kc4 {[%clk 0:00:08]} 55. Rc8+ {[%clk 0:00:05]}  Kb3 {[%clk 0:00:09]} 56. Rc6 {[%clk 0:00:05]}  Kc2 {[%clk 0:00:09]} 57. Rc8 {[%clk 0:00:04]}  Bd3+ {[%clk 0:00:08]} 58. Ke3 {[%clk 0:00:03]}  Bc4 {[%clk 0:00:07]} 59. f4 {[%clk 0:00:03]}  Bxf4+ {[%clk 0:00:06]} 60. Kxf4 {[%clk 0:00:03]}  Kxd2 {[%clk 0:00:07]} 61. Ke5 {[%clk 0:00:02]}  Kxc3 {[%clk 0:00:08]} 62. Kxe6 {[%clk 0:00:02]}  d4+ {[%clk 0:00:08]} 63. Ke5 {[%clk 0:00:02]}  d3 {[%clk 0:00:08]} 64. Rd8 {[%clk 0:00:02]}  d2 {[%clk 0:00:09]} 65. Rxd2 {[%clk 0:00:02]}  Kxd2 {[%clk 0:00:09]} 1/2-1/2


[Site "https://www.chess.com"]

[Event "Titled Tuesday Blitz May 31 Early 2022"]
[White "Urazayev, Arystanbek"]
[Black "Melikyan, Gnel"]
[WhiteFideId "13709810"]
[BlackFideId "54109990"]
[WhiteElo "2422"]
[BlackElo "1772"]
[Result "1-0"]
[Round "11"]
[TimeControl "180+1"]
[Date "2022.05.31"]
[WhiteClock "0:02:47"]
[BlackClock "0:01:43"]

1. e4 {[%clk 0:03:00]}  c5 {[%clk 0:02:58]} 2. Nf3 {[%clk 0:03:01]}  Nc6 {[%clk 0:02:58]} 3. Bb5 {[%clk 0:03:01]}  g6 {[%clk 0:02:59]} 4. O-O {[%clk 0:03:01]}  Bg7 {[%clk 0:02:59]} 5. c3 {[%clk 0:03:02]}  Nf6 {[%clk 0:02:59]} 6. e5 {[%clk 0:03:02]}  Nd5 {[%clk 0:02:59]} 7. d4 {[%clk 0:03:03]}  cxd4 {[%clk 0:02:59]} 8. cxd4 {[%clk 0:03:04]}  O-O {[%clk 0:02:59]} 9. Re1 {[%clk 0:03:05]}  d6 {[%clk 0:02:59]} 10. Nc3 {[%clk 0:03:05]}  Nxc3 {[%clk 0:02:59]} 11. bxc3 {[%clk 0:03:06]}  dxe5 {[%clk 0:02:59]} 12. Bxc6 {[%clk 0:03:07]}  bxc6 {[%clk 0:02:59]} 13. Nxe5 {[%clk 0:03:07]}  Qd5 {[%clk 0:02:48]} 14. Ba3 {[%clk 0:03:07]}  Re8 {[%clk 0:02:39]} 15. Bc5 {[%clk 0:03:07]}  Bf5 {[%clk 0:02:22]} 16. c4 {[%clk 0:03:05]}  Qe6 {[%clk 0:02:21]} 17. g4 {[%clk 0:02:59]}  Be4 {[%clk 0:01:51]} 18. Rxe4 {[%clk 0:02:46]}  f6 {[%clk 0:01:51]} 19. d5 {[%clk 0:02:46]}  cxd5 {[%clk 0:01:51]} 20. cxd5 {[%clk 0:02:47]}  Qc8 {[%clk 0:01:52]} 21. Nc6 {[%clk 0:02:47]}  f5 {[%clk 0:01:49]} 22. Rxe7 {[%clk 0:02:47]}  Bxa1 {[%clk 0:01:47]} 23. Qxa1 {[%clk 0:02:48]}  Qa6 {[%clk 0:01:43]} 24. Qg7# {[%clk 0:02:47]} 1-0


[Site "https://www.chess.com"]

[Event "Titled Tuesday Blitz May 31 Early 2022"]
[White "Vasquez Schroeder, Rodrigo"]
[Black "Yilmaz, Mustafa"]
[WhiteFideId "3400042"]
[BlackFideId "6302718"]
[WhiteElo "2567"]
[BlackElo "2568"]
[Result "1-0"]
[Round "11"]
[TimeControl "180+1"]
[Date "2022.05.31"]
[WhiteClock "0:00:30"]
[BlackClock "0:00:01"]

1. e4 {[%clk 0:03:00]}  c5 {[%clk 0:02:56]} 2. Nf3 {[%clk 0:03:01]}  Nc6 {[%clk 0:02:56]} 3. Bb5 {[%clk 0:02:57]}  e6 {[%clk 0:02:56]} 4. Bxc6 {[%clk 0:02:57]}  bxc6 {[%clk 0:02:56]} 5. d3 {[%clk 0:02:58]}  Ne7 {[%clk 0:02:54]} 6. Qe2 {[%clk 0:02:53]}  Ng6 {[%clk 0:02:51]} 7. h4 {[%clk 0:02:49]}  h5 {[%clk 0:02:45]} 8. e5 {[%clk 0:02:44]}  f6 {[%clk 0:02:27]} 9. Qe4 {[%clk 0:02:40]}  Kf7 {[%clk 0:02:21]} 10. Na3 {[%clk 0:02:38]}  d5 {[%clk 0:02:19]} 11. exd6 {[%clk 0:02:37]}  Bxd6 {[%clk 0:02:19]} 12. Nc4 {[%clk 0:02:37]}  e5 {[%clk 0:02:19]} 13. Bd2 {[%clk 0:02:33]}  Be6 {[%clk 0:01:53]} 14. Ne3 {[%clk 0:02:27]}  Qd7 {[%clk 0:01:43]} 15. b3 {[%clk 0:02:22]}  Rae8 {[%clk 0:01:41]} 16. O-O-O {[%clk 0:02:20]}  Nf4 {[%clk 0:01:35]} 17. g3 {[%clk 0:02:13]}  Ne2+ {[%clk 0:01:31]} 18. Kb1 {[%clk 0:02:10]}  Nd4 {[%clk 0:01:31]} 19. Rhe1 {[%clk 0:02:02]}  Bg4 {[%clk 0:01:18]} 20. Nxg4 {[%clk 0:01:59]}  hxg4 {[%clk 0:01:17]} 21. Nxd4 {[%clk 0:01:47]}  exd4 {[%clk 0:01:16]} 22. Qg2 {[%clk 0:01:45]}  Be5 {[%clk 0:01:11]} 23. Re4 {[%clk 0:01:30]}  f5 {[%clk 0:01:10]} 24. Re2 {[%clk 0:01:28]}  Qd5 {[%clk 0:01:06]} 25. Qf1 {[%clk 0:01:24]}  Bd6 {[%clk 0:00:53]} 26. Rde1 {[%clk 0:01:24]}  Qf3 {[%clk 0:00:52]} 27. Bg5 {[%clk 0:01:20]}  Rxe2 {[%clk 0:00:29]} 28. Qxe2 {[%clk 0:01:19]}  Qxe2 {[%clk 0:00:27]} 29. Rxe2 {[%clk 0:01:20]}  a6 {[%clk 0:00:21]} 30. Kb2 {[%clk 0:01:18]}  Rb8 {[%clk 0:00:21]} 31. c3 {[%clk 0:01:14]}  Rc8 {[%clk 0:00:18]} 32. Kc2 {[%clk 0:01:12]}  Rb8 {[%clk 0:00:18]} 33. Bc1 {[%clk 0:01:09]}  Rh8 {[%clk 0:00:17]} 34. Bb2 {[%clk 0:01:05]}  f4 {[%clk 0:00:11]} 35. cxd4 {[%clk 0:01:02]}  fxg3 {[%clk 0:00:08]} 36. fxg3 {[%clk 0:01:01]}  cxd4 {[%clk 0:00:08]} 37. Bxd4 {[%clk 0:01:00]}  Bxg3 {[%clk 0:00:08]} 38. Rg2 {[%clk 0:00:54]}  Bxh4 {[%clk 0:00:08]} 39. Rxg4 {[%clk 0:00:55]}  Bf6 {[%clk 0:00:06]} 40. a4 {[%clk 0:00:54]}  Rh2+ {[%clk 0:00:06]} 41. Kc3 {[%clk 0:00:54]}  Ke6 {[%clk 0:00:04]} 42. b4 {[%clk 0:00:50]}  Kd5 {[%clk 0:00:04]} 43. Bxf6 {[%clk 0:00:49]}  gxf6 {[%clk 0:00:05]} 44. Rd4+ {[%clk 0:00:48]}  Ke5 {[%clk 0:00:05]} 45. Rc4 {[%clk 0:00:48]}  Kd5 {[%clk 0:00:05]} 46. Rc5+ {[%clk 0:00:48]}  Kd6 {[%clk 0:00:06]} 47. Ra5 {[%clk 0:00:47]}  Rh1 {[%clk 0:00:05]} 48. Rxa6 {[%clk 0:00:46]}  Kc7 {[%clk 0:00:05]} 49. Ra7+ {[%clk 0:00:45]}  Kd6 {[%clk 0:00:05]} 50. Rf7 {[%clk 0:00:46]}  Ke6 {[%clk 0:00:06]} 51. Rf8 {[%clk 0:00:46]}  f5 {[%clk 0:00:05]} 52. a5 {[%clk 0:00:46]}  Rb1 {[%clk 0:00:06]} 53. Re8+ {[%clk 0:00:34]}  Kd6 {[%clk 0:00:05]} 54. Ra8 {[%clk 0:00:31]}  Kd5 {[%clk 0:00:04]} 55. a6 {[%clk 0:00:31]}  Ra1 {[%clk 0:00:03]} 56. a7 {[%clk 0:00:31]}  Kd6 {[%clk 0:00:01]} 57. Rd8+ {[%clk 0:00:30]} 1-0


[Site "https://www.chess.com"]